bitfinex/quotes_SOLUSD_20241116
["timestamp","ask_amount","ask_price","bid_price","bid_amount"]
[1731750599147,13.83108675,218.65,218.64,0.12549]
[1731750599945,18.40468675,218.65,218.63,0.12549]
[1731750600177,13.83108675,218.64,218.61,0.12549]
[1731750600474,4.5736,218.65,218.55,15.018]
[1731750600475,13.83108675,218.62,218.55,15.018]
[1731750600767,13.83108675,218.59,218.55,15.018]
[1731750600951,13.83108675,218.57,218.54,6.4358]
[1731750601556,13.83108675,218.61,218.54,20.26688675]
[1731750601752,13.83108675,218.63,218.56,13.92476137]
[1731750601958,13.83108675,218.62,218.56,0.09367462]
[1731750602267,13.83108675,218.6,218.56,0.09367462]
[1731750602844,13.83108675,218.6,218.58,0.21916462]
[1731750603042,11.4313,218.7,218.59,0.12549]
[1731750603248,13.83108675,218.63,218.59,0.12549]
[1731750603465,13.83108675,218.65,218.6,0.09367462]
[1731750603771,13.83108675,218.65,218.6,0.34465462]
[1731750604065,13.38168675,218.65,218.6,0.34465462]
[1731750605666,13.83108675,218.67,218.6,0.34465462]
[1731750605961,13.83108675,218.69,218.62,14.17574137]
[1731750606162,13.83108675,218.68,218.62,0.34465462]
[1731750606361,13.83108675,218.67,218.62,0.34465462]
[1731750607479,13.83108675,218.68,218.62,0.34465462]
[1731750609079,18.40408675,218.68,218.62,0.34465462]
[1731750609372,13.83108675,218.64,218.59,15.018]
[1731750610476,13.83108675,218.64,218.6,0.34465462]
[1731750616756,18.40468675,218.65,218.6,0.34465462]
[1731750619564,36.0014,218.73,218.6,0.34465462]
[1731750619869,13.83108675,218.66,218.6,0.34465462]
[1731750620184,13.83108675,218.65,218.6,0.34465462]
[1731750620788,13.83108675,218.66,218.6,0.34465462]
[1731750622472,4.5735,218.65,218.6,0.34465462]
[1731750623559,13.83108675,218.65,218.6,0.34465462]
[1731750623765,13.83108675,218.64,218.6,0.34465462]
[1731750624184,13.83108675,218.63,218.6,0.34465462]
[1731750624478,13.83108675,218.61,218.6,0.09367462]
[1731750625276,18.40538675,218.61,218.55,0.09367462]
[1731750625584,4.5743,218.61,218.55,13.92476137]
[1731750625768,18.40508675,218.63,218.57,0.09367462]
[1731750625971,18.40508675,218.63,218.59,0.09367462]
[1731750626282,18.40508675,218.63,218.56,37.73346075]
[1731750626283,18.40508675,218.63,218.62,0.25098]
[1731750626781,4.574,218.63,218.62,0.25098]
[1731750628779,8.83511088,218.64,218.62,0.25098]
[1731750629498,8.83511088,218.67,218.64,0.12549]
[1731750630397,4.5733,218.66,218.64,0.12549]
[1731750630697,4.5733,218.66,218.64,0.21916462]
[1731750631095,4.5733,218.66,218.65,0.12549]
[1731750634685,4.5733,218.66,218.54,22.4363]
[1731750634887,4.5733,218.66,218.58,8.83511088]
[1731750635195,4.5733,218.66,218.6,0.09367462]
[1731750635375,8.83511088,218.65,218.6,0.09367462]
[1731750636074,13.40871088,218.65,218.58,24.12153862]
[1731750647612,22.37069376,218.74,218.62,0.09367462]
[1731750647613,24.5718,218.73,218.62,0.09367462]
[1731750647794,8.83511088,218.69,218.62,0.34465462]
[1731750648113,8.83511088,218.67,218.62,0.34465462]
[1731750648714,13.40841088,218.67,218.62,0.34465462]
[1731750650010,4.5733,218.67,218.62,0.34465462]
[1731750651811,8.83511088,218.68,218.62,0.34465462]
[1731750653990,4.5731,218.67,218.62,0.34465462]
[1731750656921,8.83511088,218.74,218.67,0.09367462]
[1731750657093,4.5718,218.74,218.71,0.21916462]
[1731750658000,13.40691088,218.74,218.71,0.21916462]
[1731750658523,8.83511088,218.73,218.71,0.21916462]
[1731750659295,13.40701088,218.73,218.71,0.21916462]
[1731750660214,8.83511088,218.72,218.71,0.34465462]
[1731750661095,8.83511088,218.72,218.63,15.8096]
[1731750661298,8.83511088,218.66,218.63,15.8096]
[1731750662023,8.83511088,218.68,218.64,0.09367462]
[1731750662202,8.83511088,218.68,218.63,15.8096]
[1731750662707,8.83511088,218.68,218.64,0.21916462]
[1731750662908,8.83511088,218.68,218.64,0.25098]
[1731750663215,8.83511088,218.68,218.65,0.09367462]
[1731750663393,8.83511088,218.68,218.65,0.21916462]
[1731750663593,8.83511088,218.68,218.66,0.25098]
[1731750663894,8.83511088,218.67,218.66,0.25098]
[1731750664107,8.83511088,218.67,218.66,0.12549]
[1731750664296,8.83511088,218.68,218.65,0.12549]
[1731750667126,13.40801088,218.68,218.65,0.12549]
[1731750667331,8.83511088,218.66,218.65,0.12549]
[1731750668122,8.83511088,218.66,218.57,15.0381]
[1731750668321,4.5729,218.68,218.58,0.25098]
[1731750668620,4.5729,218.68,218.61,0.09367462]
[1731750668926,13.40801088,218.68,218.65,0.09367462]
[1731750669102,13.40801088,218.68,218.66,0.12549]
[1731750669301,8.83511088,218.67,218.66,0.34465462]
[1731750674625,8.83511088,218.67,218.66,0.25098]
[1731750679435,4.5733,218.66,218.58,0.25098]
[1731750679730,8.83511088,218.62,218.56,6.114]
[1731750680303,8.83511088,218.62,218.58,0.09367462]
[1731750680722,8.83511088,218.61,218.58,0.09367462]
[1731750680906,8.83511088,218.62,218.58,0.25098]
[1731750681108,8.83511088,218.62,218.59,0.09367462]
[1731750681932,8.83511088,218.61,218.56,6.114]
[1731750682136,8.83511088,218.59,218.52,15.6599]
[1731750682427,8.83511088,218.59,218.53,0.09367462]
[1731750683108,8.83511088,218.59,218.53,0.34465462]
[1731750683415,8.83511088,218.57,218.52,15.6599]
[1731750683613,4.5741,218.62,218.52,15.6599]
[1731750683917,8.83511088,218.55,218.52,15.6599]
[1731750684311,8.83511088,218.55,218.47,21.7599]
[1731750684737,8.83511088,218.55,218.48,8.83511088]
[1731750685338,8.83511088,218.55,218.49,0.09367462]
[1731750685911,8.83511088,218.55,218.48,0.34465462]
[1731750686917,13.41071088,218.55,218.48,0.34465462]
[1731750687111,186.45209376,218.66,218.49,8.83511088]
[1731750687316,8.83511088,218.6,218.53,0.09367462]
[1731750687513,8.83511088,218.62,218.56,0.21916462]
[1731750687829,8.83511088,218.63,218.59,0.25098]
[1731750688132,8.83511088,218.62,218.59,0.25098]
[1731750688729,8.83511088,218.6,218.59,0.25098]
[1731750689517,8.83511088,218.61,218.59,0.25098]
[1731750689715,4.5731,218.67,218.6,0.21916462]
[1731750689915,8.83511088,218.66,218.63,0.12549]
[1731750690132,13.40821088,218.67,218.63,0.25098]
[1731750690322,13.40821088,218.67,218.65,0.12549]
[1731750690631,13.40821088,218.67,218.65,0.25098]
[1731750690809,8.83511088,218.66,218.65,0.25098]
[1731750692037,4.5726,218.69,218.65,0.25098]
[1731750692214,8.83511088,218.67,218.65,0.25098]
[1731750693143,8.83511088,218.66,218.65,0.25098]
[1731750693933,8.83511088,218.66,218.52,70.0]
[1731750694135,8.83511088,218.64,218.58,0.25098]
[1731750694630,8.83511088,218.65,218.59,0.09367462]
[1731750695223,8.83511088,218.66,218.59,8.9287855]
[1731750695430,8.83511088,218.67,218.61,0.09367462]
[1731750697941,8.83511088,218.66,218.61,0.09367462]
[1731750703639,4.5729,218.68,218.61,0.09367462]
[1731750703640,8.83511088,218.67,218.61,0.09367462]
[1731750705421,4.5718,218.73,218.62,8.83511088]
[1731750705626,8.83511088,218.7,218.65,0.09367462]
[1731750705825,8.83511088,218.69,218.65,0.09367462]
[1731750706431,4.5718,218.73,218.67,0.09367462]
[1731750706624,13.40691088,218.73,218.67,0.09367462]
[1731750706829,8.83511088,218.72,218.67,0.09367462]
[1731750710037,20.0,218.78,218.69,0.09367462]
[1731750710251,8.83511088,218.75,218.69,0.09367462]
[1731750710944,8.83511088,218.73,218.69,0.09367462]
[1731750711142,8.83511088,218.71,218.69,0.09367462]
[1731750711321,8.83511088,218.7,218.66,0.25098]
[1731750711522,8.83511088,218.68,218.66,0.25098]
[1731750712448,20.0,218.78,218.67,0.09367462]
[1731750712626,8.83511088,218.74,218.67,0.09367462]
[1731750712945,8.83511088,218.76,218.71,0.09367462]
[1731750713529,8.83511088,218.77,218.71,0.09367462]
[1731750713736,8.83511088,218.78,218.73,0.09367462]
[1731750713936,8.83511088,218.78,218.74,0.25098]
[1731750714443,8.83511088,218.78,218.76,0.12549]
[1731750714644,8.83511088,218.77,218.76,0.12549]
[1731750715427,8.83511088,218.77,218.75,0.21916462]
[1731750715731,8.83511088,218.77,218.76,0.12549]
[1731750716051,8.83511088,218.77,218.75,0.21916462]
[1731750716052,13.40611088,218.77,218.75,0.09367462]
[1731750716248,8.83511088,218.76,218.75,0.09367462]
[1731750717225,8.83511088,218.77,218.75,0.09367462]
[1731750717645,8.83511088,218.76,218.75,0.09367462]
[1731750720555,28.83511088,218.76,218.75,0.09367462]
[1731750720937,8.83511088,218.76,218.75,0.09367462]
[1731750722956,28.83511088,218.76,218.75,0.09367462]
[1731750723347,24.5714,218.75,218.65,22.0796]
[1731750723552,8.83511088,218.66,218.65,22.0796]
[1731750723851,8.83511088,218.67,218.65,22.0796]
[1731750725153,8.83511088,218.67,218.66,0.25098]
[1731750725651,8.83511088,218.67,218.66,0.34465462]
[1731750729252,24.5716,218.74,218.66,0.34465462]
[1731750729457,8.83511088,218.69,218.66,0.34465462]
[1731750729639,4.5716,218.74,218.66,0.34465462]
[1731750729640,8.83511088,218.7,218.66,0.34465462]
[1731750730350,8.83511088,218.7,218.68,0.12549]
[1731750730544,8.83511088,218.69,218.6,22.596]
[1731750730740,8.83511088,218.65,218.61,0.25098]
[1731750731561,8.83511088,218.66,218.64,0.09367462]
[1731750731746,8.83511088,218.66,218.65,0.25098]
[1731750731938,8.83511088,218.66,218.65,0.12549]
[1731750732133,8.83511088,218.66,218.63,0.12549]
[1731750732345,8.83511088,218.65,218.63,0.12549]
[1731750732858,8.83511088,218.65,218.62,0.09367462]
[1731750733161,4.5731,218.67,218.63,0.12549]
[1731750733357,8.83511088,218.66,218.63,0.12549]
[1731750733737,13.40841088,218.66,218.63,0.12549]
[1731750736056,8.83511088,218.65,218.63,0.12549]
[1731750736254,8.83511088,218.64,218.63,0.12549]
[1731750737938,8.83511088,218.64,218.62,0.12549]
[1731750738151,8.83511088,218.63,218.56,0.25098]
[1731750738358,8.83511088,218.62,218.56,0.25098]
[1731750738571,8.83511088,218.59,218.55,15.3876]
[1731750739069,8.83511088,218.59,218.56,0.09367462]
[1731750739867,8.83511088,218.59,218.57,0.12549]
[1731750740173,4.5746,218.6,218.57,0.25098]
[1731750741575,8.83511088,218.6,218.57,0.25098]
[1731750742861,13.40961088,218.61,218.57,0.25098]
[1731750743448,4.5745,218.61,218.57,0.25098]
[1731750744645,8.83511088,218.6,218.57,0.25098]
[1731750745160,4.5731,218.67,218.54,6.3171]
[1731750745161,8.83511088,218.58,218.54,6.3171]
[1731750745655,8.83511088,218.58,218.5,15.3876]
[1731750746151,161.8,218.66,218.51,8.83511088]
[1731750746346,8.83511088,218.59,218.52,0.12549]
[1731750746540,8.83511088,218.59,218.53,0.09367462]
[1731750747363,8.83511088,218.59,218.53,0.21916462]
[1731750747658,13.40991088,218.59,218.55,0.21916462]
[1731750747841,13.40991088,218.59,218.56,0.12549]
[1731750748166,13.40991088,218.59,218.56,0.25098]
[1731750749263,13.40991088,218.59,218.52,0.25098]
[1731750749448,8.83511088,218.57,218.52,0.09367462]
[1731750750367,4.5754,218.56,218.52,0.09367462]
[1731750750942,4.5754,218.56,218.51,0.25098]
[1731750751158,4.5754,218.56,218.49,15.15221088]
[1731750751159,8.83511088,218.55,218.49,6.3171]
[1731750751372,8.83511088,218.53,218.49,6.3171]
[1731750751743,8.83511088,218.53,218.5,0.09367462]
[1731750752160,13.41111088,218.53,218.5,0.09367462]
[1731750752470,13.41111088,218.53,218.51,0.12549]
[1731750753274,4.576,218.53,218.45,16.6234]
[1731750753452,8.83511088,218.52,218.45,25.45851088]
[1731750753775,8.83511088,218.52,218.46,0.09367462]
[1731750754284,13.41151088,218.52,218.46,0.09367462]
[1731750754486,13.41151088,218.52,218.47,0.12549]
[1731750754966,13.41151088,218.52,218.47,0.25098]
[1731750756864,8.83511088,218.51,218.47,0.25098]
[1731750757056,7.84251088,218.51,218.47,0.25098]
[1731750757374,8.83511088,218.5,218.46,0.25098]
[1731750758868,13.41161088,218.51,218.46,0.25098]
[1731750759550,8.83511088,218.52,218.46,0.25098]
[1731750759752,4.5754,218.56,218.46,0.25098]
[1731750759960,8.83511088,218.52,218.46,0.25098]
[1731750761062,24.5754,218.56,218.46,0.25098]
[1731750761259,8.83511088,218.52,218.46,0.25098]
[1731750761578,8.83511088,218.5,218.46,0.25098]
[1731750761759,8.83511088,218.49,218.46,0.25098]
[1731750762671,8.83511088,218.49,218.46,0.12549]
[1731750762971,8.83511088,218.47,218.45,0.12549]
[1731750763867,8.83511088,218.47,218.41,0.12549]
[1731750764062,8.83511088,218.46,218.41,0.25098]
[1731750764265,8.83511088,218.47,218.41,0.25098]
[1731750764972,13.41251088,218.46,218.41,0.25098]
[1731750765171,8.83511088,218.45,218.41,0.12549]
[1731750765367,8.83511088,218.44,218.41,0.12549]
[1731750765555,8.83511088,218.42,218.4,15.7732]
[1731750765763,8.83511088,218.41,218.35,15.7732]
[1731750766278,8.83511088,218.36,218.3,15.7732]
[1731750766469,40.01784352,218.46,218.31,0.09367462]
[1731750766470,43.776884,218.45,218.31,0.09367462]
[1731750766676,8.83511088,218.37,218.31,0.09367462]
[1731750767571,8.83511088,218.37,218.3,24.60831088]
[1731750767881,8.83511088,218.37,218.31,0.25098]
[1731750768061,8.83511088,218.37,218.32,0.09367462]
[1731750769265,8.83511088,218.36,218.31,0.25098]
[1731750769575,8.83511088,218.35,218.31,0.12549]
[1731750769970,8.83511088,218.33,218.3,15.7732]
[1731750771372,8.83511088,218.32,218.25,15.227]
[1731750771584,7.56531088,218.28,218.24,6.4877]
[1731750771789,8.83511088,218.28,218.2,24.57724568]
[1731750771963,8.83511088,218.27,218.2,15.7421348]
[1731750772160,8.83511088,218.26,218.2,15.7421348]
[1731750772567,8.83511088,218.23,218.2,15.7421348]
[1731750773388,8.83511088,218.23,218.2,0.5151348]
[1731750773688,8.83511088,218.22,218.2,0.5151348]
[1731750774273,4.5817,218.26,218.2,0.5151348]
[1731750774486,161.7,218.32,218.21,0.09367462]
[1731750774487,8.83511088,218.24,218.21,0.09367462]
[1731750774673,4.5808,218.3,218.21,0.09367462]
[1731750774674,8.83511088,218.25,218.21,0.09367462]
[1731750774990,8.83511088,218.24,218.21,0.09367462]
[1731750775308,8.83511088,218.23,218.21,0.12549]
[1731750775492,8.83511088,218.24,218.21,0.12549]
[1731750775807,20.0,218.21,218.2,0.5151348]
[1731750776567,15.318,218.24,218.2,0.5151348]
[1731750776798,8.83511088,218.21,218.2,0.5151348]
[1731750781903,28.83511088,218.21,218.2,0.5151348]
[1731750785893,28.83511088,218.21,217.99,15.1993]
[1731750785894,0.1,218.16,217.99,15.1993]
[1731750786072,8.83511088,218.07,218.0,8.83511088]
[1731750786579,8.83511088,218.08,218.01,0.09367462]
[1731750786776,8.83511088,218.08,218.0,8.83511088]
[1731750786987,13.42061088,218.08,218.0,8.83511088]
[1731750787492,13.42061088,218.08,218.01,0.25098]
[1731750787875,13.42061088,218.08,218.02,0.09367462]
[1731750788071,13.42061088,218.08,218.03,0.25098]
[1731750788499,13.42061088,218.08,218.04,0.09367462]
[1731750788881,13.87581983,218.08,218.04,0.21916462]
[1731750789972,18.46131983,218.08,218.04,0.21916462]
[1731750790573,13.87581983,218.07,218.04,0.21916462]
[1731750791187,18.46161983,218.06,217.99,29.07511983]
[1731750791391,18.46161983,218.06,218.0,0.25098]
[1731750792305,13.87581983,218.04,217.99,15.1993]
[1731750792900,13.87581983,218.04,217.98,0.5151348]
[1731750793203,4.5865,218.03,217.98,0.5151348]
[1731750793918,13.87581983,218.02,217.98,0.5151348]
[1731750794084,13.87581983,218.03,217.98,0.5151348]
[1731750794803,13.87581983,218.02,217.98,0.5151348]
[1731750794981,18.46271983,218.01,217.98,0.5151348]
[1731750795400,33.97581983,217.99,217.98,0.5151348]
[1731750795593,57.85270383,217.99,217.98,0.5151348]
[1731750796195,58.07186845,217.99,217.98,0.5151348]
[1731750796403,58.07186845,217.99,217.83,13.87581983]
[1731750796404,0.1,217.96,217.83,13.87581983]
[1731750796706,13.87581983,217.92,217.85,13.87581983]
[1731750796897,13.87581983,217.92,217.86,0.09367462]
[1731750797203,43.876884,217.98,217.82,13.87581983]
[1731750797204,13.87581983,217.9,217.82,13.87581983]
[1731750797397,13.87581983,217.9,217.79,22.7286]
[1731750797602,18.46481983,217.91,217.83,13.87581983]
[1731750798710,4.5879,217.96,217.85,13.87581983]
[1731750798888,13.87581983,217.9,217.84,0.25098]
[1731750799207,13.87581983,217.9,217.85,0.09367462]
[1731750800018,0.1,217.84,217.68,18.350495]
[1731750800182,20.0,217.85,217.57,0.1]
[1731750800183,20.0,217.77,217.57,9.30556078]
[1731750800386,20.0,217.77,217.55,0.6151348]
[1731750800582,13.87581983,217.73,217.65,13.87581983]
[1731750800783,13.87581983,217.75,217.62,70.0]
[1731750801021,13.87581983,217.77,217.67,13.87581983]
[1731750801307,0.2,217.82,217.67,13.87581983]
[1731750801308,0.1,217.82,217.67,13.87581983]
[1731750801614,13.87581983,217.75,217.67,13.87581983]
[1731750802285,0.1,217.87,217.71,13.87581983]
[1731750802593,13.87581983,217.81,217.74,0.09367462]
[1731750802791,13.87581983,217.79,217.74,0.09367462]
[1731750803204,13.87581983,217.79,217.76,0.09367462]
[1731750804789,4.5906,217.84,217.76,0.09367462]
[1731750804996,13.87581983,217.81,217.76,0.09367462]
[1731750805306,13.87581983,217.79,217.76,0.09367462]
[1731750807831,13.87581983,217.81,217.76,0.21916462]
[1731750808109,4.5901,217.86,217.78,0.09367462]
[1731750808316,13.87581983,217.82,217.78,0.09367462]
[1731750808607,13.87581983,217.81,217.78,0.09367462]
[1731750808808,13.87581983,217.8,217.78,0.09367462]
[1731750809015,13.87581983,217.81,217.78,0.09367462]
[1731750809231,13.87581983,217.84,217.8,0.09367462]
[1731750809711,13.87581983,217.83,217.8,0.09367462]
[1731750810324,13.87581983,217.82,217.8,0.09367462]
[1731750810633,13.87581983,217.81,217.74,0.25098]
[1731750810820,13.87581983,217.8,217.74,0.25098]
[1731750811717,13.87581983,217.8,217.75,0.09367462]
[1731750812029,13.87581983,217.82,217.75,0.09367462]
[1731750812331,13.87581983,217.85,217.78,14.22047445]
[1731750812507,13.87581983,217.89,217.83,0.34465462]
[1731750815934,4.5892,217.9,217.85,13.87581983]
[1731750816325,4.5892,217.9,217.84,13.96949445]
[1731750816506,13.87581983,217.91,217.86,0.09367462]
[1731750816710,13.87581983,217.94,217.88,0.21916462]
[1731750817148,13.87581983,217.93,217.88,0.21916462]
[1731750817317,13.87581983,217.93,217.87,0.34465462]
[1731750819531,4.5886,217.94,217.87,14.22047445]
[1731750819532,13.87581983,217.94,217.87,14.22047445]
[1731750819739,13.87581983,217.96,217.89,0.34465462]
[1731750820117,4.5871,218.0,217.89,14.22047445]
[1731750820348,13.87581983,217.97,217.89,14.22047445]
[1731750820720,13.87581983,217.97,217.91,0.21916462]
[1731750820926,13.87581983,217.99,217.92,13.87581983]
[1731750821122,24.5877,217.98,217.92,13.87581983]
[1731750821322,38.46351983,217.98,217.92,0.12549]
[1731750821720,4.5877,217.98,217.93,0.21916462]
[1731750821939,18.46301983,218.0,217.95,0.12549]
[1731750822316,13.87581983,217.99,217.95,0.12549]
[1731750822535,13.87581983,217.97,217.91,0.25098]
[1731750822723,13.87581983,217.96,217.91,0.12549]
[1731750822930,13.87581983,217.95,217.92,0.12549]
[1731750823637,13.87581983,217.96,217.92,0.12549]
[1731750823836,18.46371983,217.97,217.92,0.12549]
[1731750825418,13.87581983,217.98,217.93,0.21916462]
[1731750825619,13.87581983,218.0,217.94,0.12549]
[1731750825931,13.87581983,218.02,217.95,13.87581983]
[1731750826934,4.5869,218.01,217.96,0.21916462]
[1731750827333,6.2072,218.1,217.93,6.21749]
[1731750827334,13.87581983,218.06,217.99,14.00130983]
[1731750827543,41.76161983,218.13,218.01,0.12549]
[1731750827544,18.46151983,218.07,218.01,0.12549]
[1731750827883,18.46151983,218.07,218.01,0.25098]
[1731750828224,4.5857,218.07,218.01,0.25098]
[1731750828431,13.87581983,218.06,218.01,0.25098]
[1731750829021,18.46181983,218.06,218.0,0.34465462]
[1731750829219,13.87581983,218.05,218.0,0.34465462]
[1731750829645,13.87581983,218.05,218.0,0.25098]
[1731750830237,13.87581983,218.04,217.99,0.12549]
[1731750830434,13.87581983,218.03,217.99,0.12549]
[1731750830755,4.5848,218.11,217.94,13.87581983]
[1731750830756,13.87581983,218.01,217.94,13.87581983]
[1731750831444,13.87581983,218.02,217.95,13.96949445]
[1731750831830,13.87581983,218.03,217.96,13.87581983]
[1731750832036,13.87581983,218.04,217.97,13.87581983]
[1731750832232,13.87581983,218.03,217.96,13.87581983]
[1731750832446,18.46231983,218.03,217.96,13.87581983]
[1731750833031,13.87581983,218.02,217.96,0.09367462]
[1731750833249,13.87581983,218.04,217.96,14.22047445]
[1731750833549,13.87581983,218.05,217.98,0.34465462]
[1731750834633,13.87581983,218.03,217.95,13.87581983]
[1731750834828,13.87581983,218.02,217.95,13.87581983]
[1731750835022,13.87581983,218.02,217.94,0.34465462]
[1731750835242,13.87581983,218.02,217.96,0.34465462]
[1731750835436,13.87581983,218.01,217.96,0.34465462]
[1731750835743,18.46251983,218.02,217.96,0.34465462]
[1731750836050,4.5867,218.02,217.96,0.34465462]
[1731750836942,4.5867,218.02,217.96,0.25098]
[1731750837128,13.87581983,218.03,217.97,0.09367462]
[1731750837327,13.87581983,218.05,217.98,14.12679983]
[1731750837650,13.87581983,218.07,218.0,13.87581983]
[1731750837826,13.87581983,218.06,217.99,13.87581983]
[1731750838854,18.46171983,218.06,217.99,13.87581983]
[1731750839852,16.0469,218.11,217.99,13.87581983]
[1731750840030,13.87581983,218.06,217.99,13.87581983]
[1731750840730,13.87581983,218.05,217.98,14.12679983]
[1731750841531,4.5856,218.08,217.99,13.96949445]
[1731750841735,18.46141983,218.08,218.0,13.87581983]
[1731750841937,13.87581983,218.07,218.0,13.87581983]
[1731750842157,4.5856,218.08,217.99,13.96949445]
[1731750842158,13.87581983,218.06,217.99,13.96949445]
[1731750842340,13.87581983,218.06,218.0,0.25098]
[1731750842729,18.46171983,218.06,218.0,0.25098]
[1731750843440,4.5859,218.06,218.0,0.25098]
[1731750843757,13.87581983,218.09,218.02,14.12679983]
[1731750843936,13.87581983,218.11,218.04,19.90451983]
[1731750844254,13.87581983,218.11,218.05,0.25098]
[1731750845059,4.5848,218.11,218.05,0.25098]
[1731750845444,13.87581983,218.12,218.06,0.09367462]
[1731750845635,11.4571,218.21,218.04,6.0287]
[1731750845636,13.87581983,218.16,218.09,0.25098]
[1731750845831,4.5831,218.19,218.09,0.25098]
[1731750845832,13.87581983,218.17,218.1,13.87581983]
[1731750846157,4.5831,218.19,218.12,0.12549]
[1731750846361,4.5831,218.19,218.14,0.25098]
[1731750846852,18.45851983,218.21,218.14,14.12679983]
[1731750847157,13.87581983,218.21,218.16,6.0287]
[1731750847340,13.87581983,218.23,218.16,6.0287]
[1731750847543,13.87581983,218.19,218.16,6.0287]
[1731750847751,13.87581983,218.17,218.11,0.25098]
[1731750847942,13.87581983,218.15,218.11,0.25098]
[1731750848151,13.87581983,218.15,218.1,22.6869]
[1731750848152,13.87581983,218.13,218.1,22.6869]
[1731750848336,13.87581983,218.12,218.1,22.6869]
[1731750849334,13.87581983,218.11,218.05,22.6869]
[1731750849551,13.87581983,218.1,218.05,22.6869]
[1731750850452,13.87581983,218.08,218.0,29.02691983]
[1731750850757,13.87581983,218.07,218.0,21.1874]
[1731750850955,13.87581983,218.07,218.01,0.09367462]
[1731750851874,13.87581983,218.07,218.02,0.12549]
[1731750852367,18.46151983,218.07,218.02,0.12549]
[1731750852663,18.46151983,218.07,218.0,21.1874]
[1731750852664,13.87581983,218.05,218.0,21.1874]
[1731750853046,18.46191983,218.05,218.0,21.1874]
[1731750853966,18.46191983,218.05,218.01,0.12549]
[1731750854160,13.87581983,218.06,218.01,0.12549]
[1731750855758,18.46181983,218.06,218.01,0.12549]
[1731750855951,13.87581983,218.05,218.01,0.12549]
[1731750856362,13.87581983,218.04,218.0,21.1874]
[1731750856564,13.87581983,218.04,218.01,0.25098]
[1731750856858,13.87581983,218.05,218.01,0.25098]
[1731750858590,18.46211983,218.05,218.01,0.25098]
[1731750860109,4.5863,218.05,218.01,0.25098]
[1731750861709,4.5856,218.07,218.03,0.25098]
[1731750861870,4.5846,218.12,218.06,13.96949445]
[1731750862091,4.5846,218.12,218.07,14.12679983]
[1731750862461,4.5846,218.12,218.07,0.25098]
[1731750863487,4.5846,218.12,218.01,0.1]
[1731750863488,13.87581983,218.16,218.1,0.09367462]
[1731750863794,4.5834,218.18,218.13,0.25098]
[1731750864558,13.87581983,218.2,218.14,0.09367462]
[1731750864760,13.87581983,218.22,218.15,0.25098]
[1731750865075,13.87581983,218.23,218.17,0.25098]
[1731750865256,13.87581983,218.22,218.17,0.25098]
[1731750865655,13.87581983,218.22,218.16,0.09367462]
[1731750866764,13.87581983,218.24,218.18,0.25098]
[1731750866946,18.45801983,218.24,218.18,0.25098]
[1731750867989,4.5822,218.24,218.19,0.09367462]
[1731750868278,13.87581983,218.24,218.2,0.25098]
[1731750869165,18.45811983,218.23,218.2,0.25098]
[1731750869373,4.5823,218.23,218.2,0.25098]
[1731750869547,4.5823,218.23,218.18,0.25098]
[1731750870258,4.5823,218.23,218.18,0.09367462]
[1731750870779,13.87581983,218.23,218.18,0.09367462]
[1731750871861,18.45811983,218.23,218.18,0.09367462]
[1731750872559,13.87581983,218.2,218.13,13.87581983]
[1731750872759,13.87581983,218.18,218.11,35.94721983]
[1731750872971,13.87581983,218.18,218.12,0.09367462]
[1731750873160,13.87581983,218.19,218.12,0.09367462]
[1731750873878,13.87581983,218.19,218.12,0.34465462]
[1731750874581,13.87581983,218.21,218.15,0.12549]
[1731750875162,13.87581983,218.22,218.16,0.09367462]
[1731750875369,13.87581983,218.23,218.17,0.12549]
[1731750875562,4.5814,218.27,218.19,0.12549]
[1731750875770,13.87581983,218.24,218.19,0.25098]
[1731750875963,13.87581983,218.2,218.14,0.25098]
[1731750876465,13.87581983,218.19,218.15,0.09367462]
[1731750877773,13.87581983,218.16,218.11,22.0714]
[1731750877967,13.87581983,218.14,218.11,22.0714]
[1731750878481,185.576884,218.23,218.11,22.0714]
[1731750878482,13.87581983,218.13,218.11,22.0714]
[1731750879074,185.676884,218.23,218.12,0.09367462]
[1731750879075,13.87581983,218.15,218.12,0.09367462]
[1731750879266,13.87581983,218.17,218.12,0.09367462]
[1731750879876,18.45951983,218.16,218.13,0.12549]
[1731750880068,13.87581983,218.14,218.12,0.25098]
[1731750880481,13.87581983,218.13,218.11,22.0714]
[1731750880681,13.87581983,218.12,218.06,15.7556]
[1731750880858,13.87581983,218.12,218.07,0.12549]
[1731750881063,13.87581983,218.12,218.06,15.7556]
[1731750881386,13.87581983,218.14,218.06,29.63141983]
[1731750881589,13.87581983,218.15,218.07,13.96949445]
[1731750881881,4.5842,218.14,218.09,0.09367462]